[Event "7th Sharjah Masters 2024"]
[Site "Sharjah"]
[Date "2024.05.16"]
[Round "3.43"]
[White "Samant Aditya S"]
[Black "Dudin, Gleb"]
[Result "0-1"]
[ECO "B90"]
[WhiteElo "2501"]
[BlackElo "2554"]
[Annotator "TA"]
[PlyCount "110"]
[EventDate "2024.05.13"]
[EventType "swiss"]
[EventCountry "UAE"]
[SourceTitle "playchess.com"]
[Source "ChessBase"]
[SourceQuality "1"]
[TimeControl "5400+30"]

{[%evp 34,110,-54,-42,-37,-39,0,0,0,0,0,0,0,0,0,-58,0,0,0,0,46,0,-9,0,-16,-89,-70,-266,-277,-390,-394,-385,-352,-355,-345,-422,-410,-1277,-420,-696,-718,-812,-822,-839,-808,-711,-737,-880,-870,-847,-845,-703,-606,-895,-883,-1839,-1824,-12804,-12809,-12810,-5113,-29976,-29977,-29975,-29978,-29978,-29979,-29979,-29979,-29978,-29980,-29978,-29979,-29987,-29988,-29992,-29993,-29993,-29994]} 1. e4 {[%emt 1:31:00]} c5 {[%emt 1:31:00]} 2. Nf3 {[%emt 0:00:30]} d6 {[%emt 0:00:30]} 3. d4 {[%emt 0:00:30]} cxd4 {[%emt 0:00:30]} 4. Nxd4 {[%emt 0:00:30]} Nf6 {[%emt 0:00:30]} 5. Nc3 {[%emt 0:00:30]} a6 {[%emt 0:00:30]} 6. h3 {[%emt 0:00:30]} e5 {[%emt 0:00:30]} 7. Nb3 {[%emt 0:00:30]} Be7 {[%emt 0:00:30] B90: Sicilian Najdorf: Unusual White 6th moves, 6 Be3 Ng4 and 6 Be3 e5.} 8. g4 {[%emt 0:00:30]} h6 {[%emt 0:00:30]} 9. Be3 {[%emt 0:00:30]} Nbd7 {[%emt 0:00:30]} 10. Qf3 {[%emt 0:00:30]} b5 {[%emt 0:00:30]} 11. O-O-O {[%emt 0:00:30]} b4 {[%emt 0:00:30]} 12. Nd5 {[%emt 0:00:30]} Nxd5 {[%emt 0:00:30]} 13. exd5 {[%emt 0:00:30]} a5 {[%emt 0:00:30]} 14. Nd2 {[%emt 0:00:30]} a4 {[%emt 0:00:30]} 15. Kb1 {[%emt 0:00:30]} O-O $146 {[%emt 0:00:30]} ({Predecessor:} 15... Qc7 16. Bd3 Bb7 17. Be4 Nf6 18. h4 Ra5 19. Bb6 Qxb6 20. Nc4 Qc5 21. Nxa5 Qxa5 {0-1 Aslanov,U (2260)-Gokerkan,C (2513) SRB-chT Premier 2023 (6.6)}) 16. Ne4 {[%emt 0:00:30]} Qc7 {[%emt 0:00:30]} 17. Rg1 {[%emt 0:00:30]} b3 {[%emt 0:00:30]} 18. cxb3 {[%emt 0:00:30]} axb3 {[%emt 0:00:30]} 19. Rc1 {[%emt 0:00:30]} Qa5 {[%emt 0:00:30]} 20. a3 {[%emt 0:00:30]} Bb7 {[%emt 0:00:30]} 21. Bc4 $1 {[%emt 0:00:30]} Bxd5 {[%emt 0:00:30]} 22. Bxd5 {[%emt 0:00:30]} Qxd5 {[%emt 0:00:30]} 23. Rgd1 {[%emt 0:00:30]} Qe6 $1 {[%emt 0:00:30]} 24. Rc6 {[%emt 0:00:30]} (24. Nxd6 $11 Bxd6 25. Rc6) 24... Nb8 {[%emt 0:00:30]} ({Black should try} 24... Rac8 $15 25. Rxc8 (25. Nxd6 Rxc6 26. Qxc6 Nb8 $19) 25... Rxc8) 25. Rc3 $11 {[%emt 0:00:30]} Ra4 {[%emt 0:00:30]} 26. Ng3 {[%emt 0:00:30]} Nd7 {[%emt 0:00:30]} (26... Rc8 $11 27. Rxc8+ Qxc8) 27. Qc6 {[%emt 0:00:30]} (27. Nf5 $14 e4 28. Nxe7+ Qxe7 29. Qf5) 27... Rfa8 $11 {[%emt 0:00:30]} 28. Nf5 {[%emt 0:00:30]} Bf8 {[%emt 0:00:30]} 29. Rcd3 {[%emt 0:00:30] [#]} (29. Qb7 $11 {keeps the balance.}) 29... Nf6 $1 $17 {[%emt 0:00:30]} 30. Nxd6 $2 {[%emt 0:00:30]} (30. Rc1 $1 $15) 30... Ne4 $19 {[%emt 0:00:30]} 31. Qxe4 {[%emt 0:00:30]} (31. Qc7 $142 Nxd6 (31... Bxd6 $2 32. Rxd6 Nxd6 33. Rxd6 $19) 32. Rxd6 Bxd6 33. Rxd6) 31... Rxe4 $19 {[%emt 0:00:30]} 32. Nxe4 {[%emt 0:00:30]} Qc4 {[%emt 0:00:30]} 33. Nc3 {[%emt 0:00:30]} Kh7 {[%emt 0:00:30]} 34. f3 {[%emt 0:00:30]} Be7 {[%emt 0:00:30]} 35. Kc1 {[%emt 0:00:30]} (35. R1d2 $142) 35... Bf6 {[%emt 0:00:30]} (35... Bxa3 $142 {[%cal Oa8d8] And now ...Rd8! would win.} 36. Bb6 Bb4) 36. Kb1 {[%emt 0:00:30]} (36. Kd2 $142) 36... e4 $19 {[%emt 0:00:30]} 37. fxe4 {[%emt 0:00:30]} Rxa3 {[%emt 0:00:30]} 38. bxa3 {[%emt 0:00:30]} Bxc3 {[%emt 0:00:30]} 39. Bc1 {[%emt 0:00:30]} Bb4 {[%emt 0:00:30]} 40. R3d2 {[%emt 0:00:30]} Bxd2 {[%emt 0:00:30]} 41. Rxd2 {[%emt 0:00:30]} Qxe4+ {[%emt 0:00:30]} 42. Kb2 {[%emt 0:00:30]} Qc4 {[%emt 0:00:30]} 43. Kb1 {[%emt 0:00:30]} h5 {[%emt 0:00:30]} 44. gxh5 {[%emt 0:00:30]} f5 {[%emt 0:00:30]} 45. Rb2 {[%emt 0:00:30]} Qd3+ {[%emt 0:00:30]} 46. Ka1 {[%emt 0:00:30]} Qxh3 {[%emt 0:00:30]} (46... Qc3 $142 47. Kb1 Qxh3 (47... Qd3+ $2 48. Ka1 $19)) 47. a4 {[%emt 0:00:30]} Qf1 {[%emt 0:00:30]} 48. Kb1 {[%emt 0:00:30]} Qd3+ {[%emt 0:00:30]} 49. Ka1 {[%emt 0:00:30]} Qc4 {[%emt 0:00:30]} 50. Kb1 {[%emt 0:00:30]} Qe4+ {[%emt 0:00:30]} 51. Ka1 {[%emt 0:00:30]} Qxa4+ {[%emt 0:00:30]} 52. Kb1 {[%emt 0:00:30]} f4 {[%emt 0:00:30]} 53. Rf2 {[%emt 0:00:30]} Qe4+ {[%emt 0:00:30]} 54. Ka1 {[%emt 0:00:30]} Qd4+ {[%emt 0:00:30]} 55. Rb2 {[%emt 0:00:30]} f3 {[%emt 0:00:30]} 0-1

[Event "7th Sharjah Masters 2024"]
[Site "Sharjah"]
[Date "2024.05.16"]
[Round "3.44"]
[White "Bharath Subramaniyam H"]
[Black "Suleymenov, Alisher"]
[Result "1-0"]
[ECO "B53"]
[WhiteElo "2545"]
[BlackElo "2501"]
[Annotator "TA"]
[PlyCount "151"]
[EventDate "2024.05.13"]
[EventType "swiss"]
[EventCountry "UAE"]
[SourceTitle "playchess.com"]
[Source "ChessBase"]
[SourceQuality "1"]
[TimeControl "5400+30"]

{[%evp 58,150,432,285,285,278,293,292,310,337,306,350,280,332,342,364,358,357,339,366,353,385,428,463,448,441,462,462,460,458,452,448,1177,1340,1444,1185,1444,1444,1444,702,1078,1078,1444,1444,1444,1444,1444,1444,1444,1444,1444,1437,1437,1437,1437,1437,1437,687,705,680,680,0,178,178,1437,1437,1437,1429,1399,1227,1429,1422,1422,1415,1408,545,1384,1362,1225,920,29952,7614,29966,29967,29967,29967,29966,29966,29967,29968,29960,29963,29979,29980,29978]} 1. e4 {[%emt 0:00:06]} c5 {[%emt 0:00:06]} 2. Nf3 {[%emt 0:00:08]} d6 {[%emt 0:00:05]} 3. Nc3 {[%emt 0:00:06]} Nf6 {[%emt 0:00:17]} 4. d4 {[%emt 0:00:06]} cxd4 {[%emt 0:00:04]} 5. Qxd4 {[%emt 0:00:07]} Nc6 {[%emt 0:01:43]} 6. Qd3 {[%emt 0:00:08]} g6 {[%emt 0:02:09]} 7. Nd5 {[%emt 0:00:07]} Bg7 {[%emt 0:02:12]} 8. c3 {[%emt 0:00:06]} Nd7 {[%emt 0:08:27]} 9. Bg5 {[%emt 0:00:44]} h6 {[%emt 0:03:05]} 10. Bh4 {[%emt 0:00:13]} g5 {[%emt 0:08:11]} 11. Bg3 {[%emt 0:01:25]} e6 {[%emt 0:00:31]} 12. Ne3 {[%emt 0:02:23]} Nde5 {[%emt 0:01:04]} 13. Nxe5 {[%emt 0:03:55]} dxe5 {[%emt 0:04:32]} 14. Qc2 {[%emt 0:02:55]} Qe7 {[%emt 0:06:07]} 15. O-O-O {[%emt 0:23:54]} Bd7 {[%emt 0:19:27]} 16. Kb1 {[%emt 0:05:30]} O-O-O {[%emt 0:03:35]} 17. f3 {[%emt 0:00:41]} Kb8 {[%emt 0:02:35]} 18. Bf2 {[%emt 0:02:16]} f5 {[%emt 0:06:36]} 19. exf5 {[%emt 0:10:07]} exf5 {[%emt 0:00:06]} 20. Bd3 {[%emt 0:00:24]} f4 {[%emt 0:06:29]} 21. Nd5 {[%emt 0:10:32]} Qf7 {[%emt 0:02:45]} 22. Bg6 {[%emt 0:03:30]} Qg8 {[%emt 0:02:39]} 23. Qa4 {[%emt 0:09:09]} Bf8 {[%emt 0:15:39]} 24. Be4 {[%emt 0:01:34]} Qf7 {[%emt 0:00:04]} 25. Nb4 {[%emt 0:09:06]} Bxb4 {[%emt 0:00:52]} 26. Bxc6 {[%emt 0:00:26]} Qh7+ {[%emt 0:02:14]} 27. Ka1 {[%emt 0:00:35]} Bxc6 {[%emt 0:00:44]} 28. Qxa7+ {[%emt 0:00:15]} Kc8 {[%emt 0:00:03]} 29. cxb4 {[%emt 0:02:44]} Rxd1+ {[%emt 0:00:35]} 30. Rxd1 {[%emt 0:00:02]} b5 {[%emt 0:00:05]} 31. Qc5 {[%emt 0:01:47]} Qc7 {[%emt 0:00:05]} 32. Rc1 {[%emt 0:01:23]} Kb7 {[%emt 0:00:03]} 33. Qa7+ {[%emt 0:01:45]} Kc8 {[%emt 0:00:01] [#]} 34. Qa6+ $1 {[%emt 0:00:36]} Kd7 {[%emt 0:00:00] [#]} 35. Bb6 $1 {[%emt 0:03:12]} Qb7 {[%emt 0:03:57]} 36. Qxb7+ {[%emt 0:00:33]} Bxb7 {[%emt 0:00:01]} 37. Rc7+ {[%emt 0:00:10]} Kd6 {[%emt 0:00:03]} 38. Rxb7 {[%emt 0:00:13]} Kc6 {[%emt 0:00:03]} 39. Re7 {[%emt 0:01:05]} Kxb6 {[%emt 0:00:01]} 40. Rxe5 {[%emt 0:00:50]} Rd8 {[%emt 0:00:11]} 41. Re6+ {[%emt 0:01:03]} Kc7 {[%emt 0:00:20]} 42. a3 {[%emt 0:00:38]} (42. Rxh6 $2 Rd1#) 42... Rd2 {[%emt 0:00:27]} 43. Rxh6 {[%emt 0:00:45]} Rxg2 {[%emt 0:00:05]} 44. Rg6 {[%emt 0:01:18]} g4 {[%emt 0:01:47]} (44... Rf2 $142 45. Rxg5 Kb6) 45. fxg4 $18 {[%emt 0:01:26]} (45. Rxg4 $2 {perishes.} Rxg4 46. fxg4 f3 $19) 45... f3 {[%emt 0:00:01]} 46. Ka2 {[%emt 0:00:20]} Rxh2 {[%emt 0:01:00]} 47. Rf6 {[%emt 0:00:21]} f2 {[%emt 0:00:25]} 48. Kb3 {[%emt 0:01:32]} (48. g5 $142 Kb7 49. g6) 48... Rg2 {[%emt 0:00:31]} 49. g5 {[%emt 0:00:49]} Rxg5 {[%emt 0:01:38]} 50. Rxf2 {[%emt 0:00:01]} Rg3+ {[%emt 0:00:06]} 51. Kc2 {[%emt 0:00:09]} Kc6 {[%emt 0:00:41]} 52. Rd2 {[%emt 0:00:19]} Rh3 {[%emt 0:00:24]} 53. Rd3 {[%emt 0:00:27]} Rh2+ {[%emt 0:00:05]} 54. Kc3 {[%emt 0:00:04]} Rg2 {[%emt 0:00:21]} 55. Rf3 {[%emt 0:01:07]} Rh2 {[%emt 0:00:44]} 56. Rf6+ {[%emt 0:00:46]} Kb7 {[%emt 0:01:06]} 57. Rd6 {[%emt 0:01:21]} Kc7 {[%emt 0:00:28]} 58. Rd2 {[%emt 0:00:07]} Rh3+ {[%emt 0:00:23]} 59. Kc2 $2 {[%emt 0:00:13]} (59. Rd3 Rh2 60. Rd2 Rh3+ 61. Kc2) 59... Kc6 $1 $18 {[%emt 0:00:57]} 60. b3 {[%emt 0:00:38]} Rg3 $2 {[%emt 0:00:30]} (60... Rh4 61. Kc3 Rh8) 61. Kb2 $18 {[%emt 0:00:30]} Rg4 {[%emt 0:00:05]} 62. Kc3 {[%emt 0:00:11]} Rg3+ {[%emt 0:00:51]} 63. Rd3 {[%emt 0:00:01]} Rg2 {[%emt 0:00:35]} 64. a4 {[%emt 0:00:23]} Rg5 {[%emt 0:00:50]} 65. Re3 {[%emt 0:00:40]} Rh5 {[%emt 0:00:13]} 66. Rg3 {[%emt 0:00:36]} (66. Rf3 $142 Rg5 67. a5) 66... Kd6 {[%emt 0:00:29]} 67. Kb2 {[%emt 0:02:07]} Rh2+ {[%emt 0:00:57]} 68. Ka3 {[%emt 0:00:01]} Rh5 {[%emt 0:00:27]} 69. Rc3 {[%emt 0:00:07]} (69. a5 $142 Kd7 70. Rd3+ Ke7 71. Rc3 Rh8 72. Rc5 Rb8 73. Kb2 Kf8 74. Kc3 (74. Re5 Kf7 $18)) 69... Rh1 {[%emt 0:00:33]} 70. a5 {[%emt 0:01:27]} Rh8 {[%emt 0:00:30]} 71. Rc5 {[%emt 0:00:01]} Rb8 {[%emt 0:00:28]} 72. Kb2 {[%emt 0:00:01]} Rb7 {[%emt 0:00:25]} 73. Kc3 {[%emt 0:00:10]} Rb8 {[%emt 0:00:31]} 74. Kd4 {[%emt 0:00:14]} Ke7 {[%emt 0:00:36]} 75. Rc6 {[%emt 0:00:18]} Rh8 {[%emt 0:00:17]} 76. Kc5 {[%emt 0:00:14]} 1-0